[Event "IIFL Wealth 4th Mumbai Open"]
[Site "Mumbai"]
[Date "2018.12.30"]
[Round "1"]
[White "Mayank, Chakraborty"]
[Black "Iyer, A N"]
[Result "1-0"]
[ECO "C00"]
[WhiteElo "1691"]
[BlackElo "1217"]
[Annotator "NA"]
[PlyCount "95"]
[EventDate "2018.12.30"]
[EventType "swiss"]
[EventCountry "IND"]
[SourceTitle "playchess.com"]
[Source "ChessBase"]
[SourceQuality "1"]
[TimeControl "40/5400+30:1800+30"]

1. e4 {[%emt 0:00:00]} d6 {[%emt 0:01:02]} 2. d4 {[%emt 0:00:00]} e6 {[%emt 0:00:07]} 3. Nc3 {[%emt 0:00:50]} Nf6 {[%emt 0:00:04]} 4. Bf4 {[%emt 0:00:27]} Nbd7 {[%emt 0:00:42]} 5. Nf3 {[%emt 0:00:46]} c6 {[%emt 0:00:50]} 6. a4 {[%emt 0:00:56]} Be7 {[%emt 0:00:16]} 7. Bd3 {[%emt 0:01:23]} Qc7 {[%emt 0:00:19]} 8. Qd2 {[%emt 0:00:58]} e5 {[%emt 0:01:01]} 9. dxe5 {[%emt 0:00:38]} dxe5 {[%emt 0:00:07]} 10. Be3 {[%emt 0:04:34]} Nc5 {[%emt 0:00:59]} 11. Bxc5 {[%emt 0:00:45]} Bxc5 {[%emt 0:00:08]} 12. Qg5 {[%emt 0:03:01]} O-O {[%emt 0:02:51]} 13. Qxe5 {[%emt 0:01:56]} Qxe5 {[%emt 0:00:16]} 14. Nxe5 {[%emt 0:00:18]} Bd4 {[%emt 0:00:07]} 15. Nc4 {[%emt 0:00:34]} Be6 {[%emt 0:02:14]} 16. Nd2 {[%emt 0:00:17]} Rfe8 {[%emt 0:02:39]} 17. O-O {[%emt 0:00:59]} a6 {[%emt 0:01:46]} 18. Nf3 {[%emt 0:03:02]} Rad8 {[%emt 0:01:37]} 19. Nxd4 {[%emt 0:00:43]} Rxd4 {[%emt 0:00:13]} 20. f3 {[%emt 0:00:13]} Red8 {[%emt 0:01:47]} 21. Rfd1 {[%emt 0:00:19]} Kf8 {[%emt 0:03:54]} 22. Bf1 {[%emt 0:00:24]} Ke7 {[%emt 0:00:50]} 23. Kf2 {[%emt 0:00:22]} Rxd1 {[%emt 0:01:11]} 24. Rxd1 {[%emt 0:00:02]} Rxd1 {[%emt 0:00:23]} 25. Nxd1 {[%emt 0:00:03]} Nd7 {[%emt 0:01:48]} 26. Ke3 {[%emt 0:00:12]} Nb6 {[%emt 0:01:20]} 27. b3 {[%emt 0:00:22]} Kd6 {[%emt 0:01:38]} 28. Nb2 {[%emt 0:00:54]} f6 {[%emt 0:02:11]} 29. Nd3 {[%emt 0:00:09]} c5 {[%emt 0:01:13]} 30. Nb2 {[%emt 0:00:46]} f5 {[%emt 0:01:57]} 31. a5 {[%emt 0:00:41]} Nc8 {[%emt 0:01:47]} 32. Bd3 {[%emt 0:01:16]} Ne7 {[%emt 0:00:59]} 33. Kf4 {[%emt 0:07:06]} g6 {[%emt 0:02:07]} 34. Kg5 {[%emt 0:01:21]} Ke5 {[%emt 0:01:23]} 35. f4+ {[%emt 0:02:45]} Kd6 {[%emt 0:01:22]} 36. e5+ {[%emt 0:00:12]} Kd7 {[%emt 0:00:30]} 37. Kh6 {[%emt 0:00:28]} Nc6 {[%emt 0:01:41]} 38. Kxh7 {[%emt 0:00:20]} Nxa5 {[%emt 0:00:34]} 39. Kxg6 {[%emt 0:00:14]} b5 {[%emt 0:00:43]} 40. h4 {[%emt 0:00:00]} c4 {[%emt 0:00:00]} 41. bxc4 {[%emt 0:00:22]} bxc4 {[%emt 0:02:11]} 42. Bxf5 {[%emt 0:00:03]} c3 {[%emt 0:03:43]} 43. Na4 {[%emt 0:00:29]} Bxf5+ {[%emt 0:00:40]} 44. Kxf5 {[%emt 0:00:13]} Nc4 {[%emt 0:00:06]} 45. Nxc3 {[%emt 0:00:26]} Ne3+ {[%emt 0:00:21]} 46. Kg6 {[%emt 0:00:17]} Ke6 {[%emt 0:00:17]} 47. g3 {[%emt 0:00:16]} a5 {[%emt 0:00:31]} 48. h5 {[%emt 0:00:08]} 1-0

[Event "IIFL Wealth 4th Mumbai Open"]
[Site "Mumbai"]
[Date "2018.12.30"]
[Round "1"]
[White "Shorya, Lakshayjeet"]
[Black "Raghav, Srivathsav V"]
[Result "0-1"]
[ECO "E63"]
[WhiteElo "1314"]
[BlackElo "2056"]
[Annotator "NA"]
[PlyCount "93"]
[EventDate "2018.12.30"]
[EventType "swiss"]
[EventCountry "IND"]
[SourceTitle "playchess.com"]
[Source "ChessBase"]
[SourceQuality "1"]
[TimeControl "40/5400+30:1800+30"]

1. d4 {[%emt 0:01:34]} Nf6 {[%emt 0:00:00]} 2. c4 {[%emt 0:00:14]} g6 {[%emt 0:00:05]} 3. Nc3 {[%emt 0:00:29]} Bg7 {[%emt 0:00:07]} 4. g3 {[%emt 0:00:23]} O-O {[%emt 0:00:08]} 5. Bg2 {[%emt 0:00:02]} d6 {[%emt 0:00:06]} 6. Nf3 {[%emt 0:00:12]} Nc6 {[%emt 0:00:05]} 7. O-O {[%emt 0:00:31]} a6 {[%emt 0:00:05]} 8. Bf4 {[%emt 0:03:33]} Ng4 {[%emt 0:01:50]} 9. h3 {[%emt 0:00:48]} e5 {[%emt 0:00:26]} 10. Bg5 {[%emt 0:01:41]} f6 {[%emt 0:00:42]} 11. Be3 {[%emt 0:02:43]} Nxe3 {[%emt 0:00:44]} 12. fxe3 {[%emt 0:00:13]} e4 {[%emt 0:04:39]} 13. Nxe4 {[%emt 0:06:46]} Bh6 {[%emt 0:03:09]} 14. Qd3 {[%emt 0:03:15]} Qe7 {[%emt 0:00:46]} 15. a3 {[%emt 0:02:18]} f5 {[%emt 0:01:05]} 16. Nc3 {[%emt 0:01:34]} Qxe3+ {[%emt 0:00:20]} 17. Qxe3 {[%emt 0:00:17]} Bxe3+ {[%emt 0:00:44]} 18. Kh2 {[%emt 0:00:18]} Bxd4 {[%emt 0:01:25]} 19. Nxd4 {[%emt 0:00:12]} Nxd4 {[%emt 0:00:06]} 20. Rad1 {[%emt 0:01:13]} Ne6 {[%emt 0:00:44]} 21. Nd5 {[%emt 0:01:25]} Bd7 {[%emt 0:02:37]} 22. e4 {[%emt 0:01:04]} Ba4 {[%emt 0:01:26]} 23. Rd2 {[%emt 0:00:49]} fxe4 {[%emt 0:00:26]} 24. Rxf8+ {[%emt 0:01:58]} Rxf8 {[%emt 0:00:08]} 25. Bxe4 {[%emt 0:01:21]} Kg7 {[%emt 0:01:08]} 26. h4 {[%emt 0:04:32]} Bb3 {[%emt 0:03:11]} 27. Ne3 {[%emt 0:02:16]} Nc5 {[%emt 0:00:47]} 28. Bd5 {[%emt 0:01:33]} c6 {[%emt 0:06:18]} 29. Bg2 {[%emt 0:00:22]} Re8 {[%emt 0:00:13]} 30. Nd1 {[%emt 0:02:07]} Bxc4 {[%emt 0:02:35]} 31. Rxd6 {[%emt 0:00:25]} Re2 {[%emt 0:01:35]} 32. Kh3 {[%emt 0:00:36]} Be6+ {[%emt 0:00:42]} 33. g4 {[%emt 0:00:55]} h5 {[%emt 0:01:17]} 34. Kg3 Bxg4 {[%emt 0:00:26]} 35. Bf3 {[%emt 0:02:57]} Ne4+ {[%emt 0:01:20]} 36. Bxe4 {[%emt 0:00:23]} Rxe4 {[%emt 0:00:18]} 37. Nf2 {[%emt 0:00:53]} Re3+ {[%emt 0:00:13]} 38. Kg2 {[%emt 0:00:28]} Re2 {[%emt 0:01:35]} 39. b4 {[%emt 0:00:45]} Bf5 {[%emt 0:01:16]} 40. Kf3 {[%emt 0:00:00]} Ra2 {[%emt 0:00:00]} 41. Ne4 {[%emt 0:02:21]} Rxa3+ {[%emt 0:00:25]} 42. Kf4 {[%emt 0:00:13]} Rh3 {[%emt 0:01:17]} 43. Ke5 {[%emt 0:00:52]} Re3 {[%emt 0:00:17]} 44. Rd4 {[%emt 0:00:24]} Rxe4+ {[%emt 0:00:49]} 45. Rxe4 {[%emt 0:00:03]} Bxe4 {[%emt 0:00:07]} 46. Kxe4 {[%emt 0:00:08]} Kf6 {[%emt 0:00:04]} 47. Kd4 {Ke5+} 0-1

[Event "IIFL Wealth 4th Mumbai Open"]
[Site "Mumbai"]
[Date "2018.12.30"]
[Round "1"]
[White "Lasani, H Kothari"]
[Black "Samrat, Ghorai"]
[Result "0-1"]
[ECO "B43"]
[WhiteElo "1311"]
[BlackElo "1984"]
[Annotator "NA"]
[PlyCount "76"]
[EventDate "2018.12.30"]
[EventType "swiss"]
[EventCountry "IND"]
[SourceTitle "playchess.com"]
[Source "ChessBase"]
[SourceQuality "1"]
[TimeControl "40/5400+30:1800+30"]

1. e4 {[%emt 0:00:00]} c5 {[%emt 0:00:00]} 2. Nf3 {[%emt 0:00:00]} e6 {[%emt 0:00:00]} 3. d4 {[%emt 0:00:00]} cxd4 {[%emt 0:00:00]} 4. Nxd4 {[%emt 0:00:00]} a6 {[%emt 0:00:00]} 5. Nc3 {[%emt 0:00:18]} Qc7 {[%emt 0:00:00]} 6. Bd3 {[%emt 0:03:12]} Nf6 {[%emt 0:00:00]} 7. Bg5 {[%emt 0:01:17]} Be7 {[%emt 0:01:27]} 8. Qd2 {[%emt 0:01:39]} b5 {[%emt 0:00:22]} 9. a3 {[%emt 0:02:08]} Bb7 {[%emt 0:02:41]} 10. f3 {[%emt 0:01:51]} h6 {[%emt 0:00:25]} 11. Bh4 {[%emt 0:00:37]} Nxe4 {[%emt 0:01:08]} 12. Nxe4 {[%emt 0:03:20]} Bxh4+ {[%emt 0:00:12]} 13. g3 {[%emt 0:02:15]} Be7 {[%emt 0:00:26]} 14. O-O-O {[%emt 0:01:57]} f5 {[%emt 0:06:33]} 15. Nc3 {[%emt 0:06:00]} Bg5 {[%emt 0:04:28]} 16. f4 {[%emt 0:00:14]} Bf6 {[%emt 0:00:05]} 17. Be2 {[%emt 0:02:14]} Bxh1 {[%emt 0:00:49]} 18. Bh5+ {[%emt 0:00:58]} Kf8 {[%emt 0:00:51]} 19. Rxh1 {[%emt 0:01:01]} Nc6 {[%emt 0:01:28]} 20. Nxc6 {[%emt 0:05:44]} Qxc6 {[%emt 0:00:15]} 21. Rd1 {[%emt 0:02:13]} Ke7 {[%emt 0:01:47]} 22. Qe3 {[%emt 0:04:45]} Rac8 {[%emt 0:02:30]} 23. Bf3 {[%emt 0:05:52]} Qc5 {[%emt 0:01:07]} 24. Qxc5+ {[%emt 0:06:33]} Rxc5 {[%emt 0:01:17]} 25. Ne2 {[%emt 0:02:21]} a5 {[%emt 0:00:14]} 26. Kb1 {[%emt 0:01:20]} b4 {[%emt 0:01:00]} 27. axb4 {[%emt 0:01:54]} axb4 {[%emt 0:00:04]} 28. Bg2 {[%emt 0:06:02]} g5 {[%emt 0:00:37]} 29. Rd3 {[%emt 0:04:01]} g4 {[%emt 0:01:18]} 30. h3 {[%emt 0:01:46]} gxh3 {[%emt 0:00:23]} 31. Bxh3 {[%emt 0:00:06]} h5 {[%emt 0:00:13]} 32. Nc1 {[%emt 0:02:28]} h4 {[%emt 0:00:43]} 33. Nb3 {[%emt 0:01:28]} Rc4 {[%emt 0:00:14]} 34. Nd2 {[%emt 0:03:43]} Rd4 {[%emt 0:01:10]} 35. Rxd4 {[%emt 0:01:05]} Bxd4 {[%emt 0:00:06]} 36. Nf3 {[%emt 0:00:59]} hxg3 {[%emt 0:00:12]} 37. Bg2 {[%emt 0:02:18]} Be3 {[%emt 0:00:12]} 38. Ne5 {[%emt 0:01:09]} Rh2 {[%emt 0:00:13]} 0-1

[Event "IIFL Wealth 4th Mumbai Open"]
[Site "Mumbai"]
[Date "2018.12.30"]
[Round "1"]
[White "Sohanganesh, Uddhav Nikam"]
[Black "Kothari, Swapnil"]
[Result "0-1"]
[ECO "B50"]
[WhiteElo "1299"]
[BlackElo "1870"]
[Annotator "NA"]
[PlyCount "71"]
[EventDate "2018.12.30"]
[EventType "swiss"]
[EventCountry "IND"]
[SourceTitle "playchess.com"]
[Source "ChessBase"]
[SourceQuality "1"]
[TimeControl "40/5400+30:1800+30"]

1. e4 {[%emt 0:00:00]} c5 {[%emt 0:00:00]} 2. Nf3 {[%emt 0:00:00]} d6 {[%emt 0:00:00]} 3. Bc4 {[%emt 0:00:00]} e6 {[%emt 0:00:00]} 4. Nc3 {[%emt 0:00:13]} Nc6 {[%emt 0:00:00]} 5. a4 {[%emt 0:00:08]} a6 {[%emt 0:00:10]} 6. O-O {[%emt 0:00:07]} Nf6 {[%emt 0:00:15]} 7. Re1 {[%emt 0:00:16]} Be7 {[%emt 0:00:09]} 8. e5 {[%emt 0:00:12]} dxe5 {[%emt 0:04:20]} 9. Nxe5 {[%emt 0:00:25]} Nxe5 {[%emt 0:00:02]} 10. Rxe5 {[%emt 0:00:02]} Qd4 {[%emt 0:06:00]} 11. Qe2 {[%emt 0:02:04]} Bd6 {[%emt 0:07:34]} 12. Re3 {[%emt 0:01:01]} Bd7 {[%emt 0:20:20]} 13. Qd3 {[%emt 0:16:08]} Ng4 {[%emt 0:09:37]} 14. Re2 {[%emt 0:03:24]} Bxh2+ {[%emt 0:02:15]} 15. Kf1 {[%emt 0:02:05]} Bd6 {[%emt 0:11:47]} 16. Qxd4 {[%emt 0:00:33]} cxd4 {[%emt 0:00:01]} 17. Ne4 {[%emt 0:00:23]} Be7 {[%emt 0:00:12]} 18. b3 {[%emt 0:00:46]} Ne5 {[%emt 0:00:59]} 19. d3 {[%emt 0:03:03]} O-O {[%emt 0:06:32]} 20. Nc5 {[%emt 0:03:31]} Nxc4 {[%emt 0:04:09]} 21. Nxd7 {[%emt 0:00:35]} Rfd8 {[%emt 0:00:11]} 22. dxc4 {[%emt 0:03:54]} Rxd7 {[%emt 0:00:01]} 23. Rd2 {[%emt 0:04:09]} Bb4 {[%emt 0:00:36]} 24. Rd3 {[%emt 0:01:21]} Bc3 {[%emt 0:00:29]} 25. Rb1 {[%emt 0:00:01]} e5 {[%emt 0:00:31]} 26. f3 {[%emt 0:00:06]} f5 {[%emt 0:00:12]} 27. Bb2 {[%emt 0:00:33]} e4 {[%emt 0:00:16]} 28. Rdd1 {[%emt 0:00:12]} Rad8 {[%emt 0:00:53]} 29. Ke2 {[%emt 0:05:05]} Bb4 {[%emt 0:02:46]} 30. Bc1 {[%emt 0:05:07]} d3+ {[%emt 0:05:09]} 31. cxd3 {[%emt 0:01:12]} exd3+ {[%emt 0:00:19]} 32. Kf2 {[%emt 0:00:20]} d2 {[%emt 0:00:33]} 33. Bb2 {[%emt 0:00:42]} Re8 {[%emt 0:00:13]} 34. f4 {[%emt 0:04:07]} Re1 {[%emt 0:03:10]} 35. Be5 {[%emt 0:00:44]} Rd3 {[%emt 0:00:46]} 36. Bd4 0-1

[Event "IIFL Wealth 4th Mumbai Open"]
[Site "Mumbai"]
[Date "2018.12.30"]
[Round "1"]
[White "Vishal, Shewale"]
[Black "Dave, Sneh"]
[Result "1-0"]
[ECO "C51"]
[WhiteElo "1287"]
[BlackElo "1851"]
[Annotator "NA"]
[PlyCount "167"]
[EventDate "2018.12.30"]
[EventType "swiss"]
[EventCountry "IND"]
[SourceTitle "playchess.com"]
[Source "ChessBase"]
[SourceQuality "1"]
[TimeControl "40/5400+30:1800+30"]

1. e4 e5 2. Nf3 Nc6 3. Bc4 Bc5 4. b4 Bxb4 5. c3 Bd6 6. d4 Nf6 7. Ng5 O-O 8. f4 exd4 9. e5 Bc5 10. exf6 Qxf6 11. Qh5 h6 12. Nxf7 d5 13. Qxd5 Be6 14. Qxc5 Bxf7 15. Qh5 Be6 16. Qc5 Bf7 17. Qh5 Be6 18. Qc5 Bf7 19. O-O b6 20. Bxf7+ Rxf7 21. Qc4 {Rff8 Qc5 Rf7 Qc4 Rff8 Qc5 Rf7 Qc4} Rd8 22. Qc5 Ra8 23. Qc4 Rd8 24. Qc5 Ra8 25. Qc4 Rd8 26. Qd3 Rfd7 27. Qc4+ Rf7 28. Qd3 Rfd7 29. Bb2 Rf7 30. Bc1 Rfd7 31. Bb2 Rf7 32. Bc1 Rfd7 33. Bb2 Kh8 34. Na3 Kg8 35. Nb1 Kh8 36. Na3 Kg8 37. Nb1 Kh8 38. Na3 dxc3 39. Qxc3 Qxc3 40. Bxc3 Rd3 41. Rac1 Nd4 42. Rfe1 c5 43. Nc4 Nb5 44. Bb2 Nd6 45. Bc3 Nb5 46. Bb2 Nd6 47. Re2 Nf5 48. Ne5 Rd1+ 49. Rxd1 Rxd1+ 50. Kf2 h5 51. Nf3 Kg8 52. Rd2 Rb1 53. Ng5 Kf8 54. Ne4 Ke7 55. Nc3 Rh1 56. h3 h4 57. Rd1 Rxd1 58. Nxd1 Ke6 59. Ne3 Ke7 60. Nd1 Ke6 61. Ne3 g6 62. Nxf5 Kxf5 63. Ke3 b5 64. Ba3 b4 65. Bc1 a5 66. Kd3 a4 67. Kc4 Ke4 68. Bd2 Kf5 69. Bc1 Ke4 70. Bd2 b3 71. axb3 axb3 72. Kxb3 Kd3 73. Bc3 Ke2 74. Kc4 {Kd3+ Kb3 Ke2 Kc4} Kf2 75. Bf6 Kxg2 76. Bxh4 Kxh3 77. Bg5 Kg2 78. Bh4 Kh3 79. Bg5 Kg4 80. Kxc5 Kf5 81. Kd5 Kg4 82. Ke5 Kh5 83. Kf6 Kg4 84. Kxg6 1-0

[Event "IIFL Wealth 4th Mumbai Open"]
[Site "Mumbai"]
[Date "2018.12.30"]
[Round "1"]
[White "Borade, Sagar"]
[Black "Krishnan, Ritvik"]
[Result "0-1"]
[ECO "B30"]
[WhiteElo "1275"]
[BlackElo "1812"]
[Annotator "NA"]
[PlyCount "168"]
[EventDate "2018.12.30"]
[EventType "swiss"]
[EventCountry "IND"]
[SourceTitle "playchess.com"]
[Source "ChessBase"]
[SourceQuality "1"]
[TimeControl "40/5400+30:1800+30"]

1. e4 c5 2. Nf3 Nc6 3. Nc3 e5 4. d3 d6 5. a3 Nf6 6. Be2 Be7 7. Bf1 Bf8 8. Be2 Be7 9. Bf1 Bf8 10. Be2 Be7 11. h3 O-O 12. O-O h6 13. Re1 Be6 14. Rf1 Bc8 15. Re1 Be6 16. Bd2 Nh7 17. g4 Ng5 18. Nxg5 Bxg5 19. Qc1 Bxd2 20. Qxd2 Qh4 21. Bf1 h5 22. f3 Nd4 23. Qg2 Nc6 24. Qd2 Nd4 25. Qg2 Rae8 26. Rac1 Ra8 27. Ra1 Rae8 28. Rac1 f5 29. exf5 Bxf5 30. Ne2 Be6 31. Nc3 Bf5 32. Ne2 Bxd3 33. Nxd4 Bxf1 34. Rxf1 exd4 35. Rcd1 Re3 36. Rd3 Ree8 37. Rdd1 Re3 38. Rd3 Ree8 39. Rdd1 Re3 40. Rd3 Re1 41. Rd1 Rxd1 42. Rxd1 Qf6 43. Rf1 hxg4 44. hxg4 Re8 45. Qg3 Re3 46. Rf2 Re8 47. Rf1 Re3 48. Rf2 Re8 49. Rf1 Re3 50. Rf2 Qe5 51. Kg2 Qxg3+ 52. Kxg3 g5 53. Rh2 Kg7 54. Kf2 c4 55. Rh1 Re5 56. Rd1 Rd5 57. Ke2 Kf6 58. Kf2 b5 59. c3 dxc3 60. Rxd5 c2 61. Rxd6+ Ke5 62. Rd1 Kf6 63. Rd6+ Ke5 64. Rd1 Kf6 65. Rd6+ Ke5 66. Rd2 c1=Q 67. Re2+ Kf6 68. Kg2 c3 69. bxc3 Qxc3 70. Rf2 Qxa3 71. f4 gxf4 72. Rf3 Qb2+ 73. Kh3 Kg5 74. Rf2 Qb3+ 75. Kg2 Kxg4 76. Kh2 Qg3+ 77. Kh1 Qb3 78. Kh2 Qg3+ 79. Kh1 Kh3 80. Re2 f3 81. Rf2 a6 82. Re2 Qd6 83. Re1 Qd2 84. Rg1 Qh2# 0-1

[Event "IIFL Wealth 4th Mumbai Open"]
[Site "Mumbai"]
[Date "2018.12.30"]
[Round "1"]
[White "Sawalakhe, Jay"]
[Black "Tanuj, Dayal"]
[Result "0-1"]
[ECO "B42"]
[WhiteElo "1273"]
[BlackElo "1803"]
[Annotator "NA"]
[PlyCount "188"]
[EventDate "2018.12.30"]
[EventType "swiss"]
[EventCountry "IND"]
[SourceTitle "playchess.com"]
[Source "ChessBase"]
[SourceQuality "1"]
[TimeControl "40/5400+30:1800+30"]

1. e4 {[%emt 0:00:00]} c5 {[%emt 0:00:00]} 2. Nf3 {[%emt 0:00:00]} e6 {[%emt 0:00:00]} 3. d4 {[%emt 0:00:00]} cxd4 {[%emt 0:00:00]} 4. Nxd4 {[%emt 0:00:00]} a6 {[%emt 0:00:00]} 5. Bd3 {[%emt 0:00:03]} Nf6 {[%emt 0:00:01]} 6. O-O {[%emt 0:00:08]} Qc7 {[%emt 0:00:03]} 7. Qe2 d6 {[%emt 0:01:19]} 8. Nc3 {[%emt 0:00:36]} Be7 {[%emt 0:00:30]} 9. f4 {[%emt 0:00:29]} Nbd7 {[%emt 0:00:58]} 10. g4 {[%emt 0:01:20]} Nc5 {[%emt 0:00:57]} 11. g5 {[%emt 0:00:45]} Nfd7 {[%emt 0:00:21]} 12. Nd1 {[%emt 0:06:30]} b5 {[%emt 0:03:05]} 13. h4 {[%emt 0:03:17]} Bb7 {[%emt 0:04:25]} 14. b3 {[%emt 0:04:30]} d5 {[%emt 0:07:00]} 15. Nf2 {[%emt 0:04:56]} O-O {[%emt 0:09:16]} 16. Qe3 {[%emt 0:10:18]} Rac8 {[%emt 0:12:32]} 17. Bb2 {[%emt 0:04:29]} Rfd8 {[%emt 0:08:37]} 18. Rac1 {[%emt 0:05:00]} dxe4 {[%emt 0:01:27]} 19. Nxe4 Nxe4 {[%emt 0:05:20]} 20. Bxe4 {[%emt 0:00:41]} Bxe4 {[%emt 0:00:03]} 21. Qxe4 {[%emt 0:00:15]} Nc5 {[%emt 0:00:20]} 22. Qe3 {[%emt 0:00:33]} Bd6 {[%emt 0:02:26]} 23. f5 {[%emt 0:02:17]} e5 {[%emt 0:01:53]} 24. Nf3 {[%emt 0:01:18]} Re8 {[%emt 0:02:47]} 25. Kg2 {[%emt 0:01:48]} Qd7 {[%emt 0:02:45]} 26. Rcd1 {[%emt 0:01:01]} Qxf5 {[%emt 0:18:14]} 27. Rxd6 {[%emt 0:00:17]} Qg4+ {[%emt 0:00:46]} 28. Kh2 {[%emt 0:00:45]} Ne4 {[%emt 0:00:28]} 29. Rd2 {[%emt 0:07:49]} Qg3+ {[%emt 0:09:32]} 30. Kh1 {[%emt 0:00:03]} Qh3+ {[%emt 0:01:54]} 31. Kg1 {[%emt 0:00:08]} Nxd2 {[%emt 0:00:26]} 32. Qxd2 {[%emt 0:00:05]} Rc5 {[%emt 0:02:20]} 33. Qf2 {[%emt 0:00:37]} Qg4+ {[%emt 0:01:55]} 34. Kh1 {[%emt 0:00:05]} Qh3+ {[%emt 0:01:47]} 35. Kg1 {[%emt 0:02:41]} e4 {[%emt 0:02:01]} 36. Ne5 {[%emt 0:01:27]} Rc7 {[%emt 0:00:09]} 37. Re1 {[%emt 0:02:44]} f6 {[%emt 0:02:09]} 38. Re3 {[%emt 0:00:57]} Qe6 {[%emt 0:00:03]} 39. gxf6 {[%emt 0:00:11]} Qxf6 {[%emt 0:01:10]} 40. Qxf6 {[%emt 0:00:00]} gxf6 {[%emt 0:00:00]} 41. Ng4 {[%emt 0:00:14]} Rg7 {[%emt 0:05:08]} 42. Rg3 {[%emt 0:00:36]} Re6 {[%emt 0:04:06]} 43. Nxf6+ {[%emt 0:00:32]} Rxf6 {[%emt 0:00:29]} 44. Rxg7+ {[%emt 0:00:21]} Kxg7 {[%emt 0:00:04]} 45. Bxf6+ {[%emt 0:00:33]} Kxf6 {[%emt 0:00:02]} 46. Kf2 {[%emt 0:00:12]} b4 {[%emt 0:01:04]} 47. Ke2 {[%emt 0:02:11]} h5 {[%emt 0:00:46]} 48. Kd2 {[%emt 0:00:06]} Kf5 {[%emt 0:01:09]} 49. c3 {[%emt 0:00:29]} bxc3+ {[%emt 0:00:07]} 50. Kxc3 {[%emt 0:00:03]} Kf4 {[%emt 0:00:10]} 51. Kd2 {[%emt 0:00:09]} Kg4 {[%emt 0:00:38]} 52. a4 {[%emt 0:01:06]} a5 {[%emt 0:02:15]} 53. b4 {[%emt 0:00:17]} axb4 {[%emt 0:00:02]} 54. a5 {[%emt 0:00:06]} b3 {[%emt 0:00:04]} 55. a6 {[%emt 0:00:07]} b2 {[%emt 0:00:45]} 56. Kc2 {[%emt 0:00:05]} e3 {[%emt 0:00:05]} 57. a7 {[%emt 0:00:06]} e2 {[%emt 0:00:04]} 58. a8=Q {[%emt 0:00:34]} b1=Q+ {[%emt 0:00:07]} 59. Kxb1 {[%emt 0:00:24]} e1=Q+ 60. Kb2 {[%emt 0:00:06]} Qd2+ {[%emt 0:03:04]} 61. Kb3 {[%emt 0:00:14]} Qd1+ {[%emt 0:00:29]} 62. Kb2 {[%emt 0:00:04]} Kxh4 {[%emt 0:00:32]} 63. Qe4+ {[%emt 0:00:35]} Kh3 {[%emt 0:00:28]} 64. Qe3+ {[%emt 0:00:23]} Kg2 {[%emt 0:00:44]} 65. Qe4+ {[%emt 0:00:15]} Qf3 {[%emt 0:00:03]} 66. Qg6+ {[%emt 0:00:17]} Kh2 {[%emt 0:00:35]} 67. Qd6+ {[%emt 0:00:41]} Qg3 {[%emt 0:00:03]} 68. Qc5 {[%emt 0:00:12]} h4 {[%emt 0:00:05]} 69. Kc2 {[%emt 0:00:30]} h3 {[%emt 0:00:08]} 70. Kd2 {[%emt 0:00:16]} Qg2+ {[%emt 0:00:03]} 71. Kd3 {[%emt 0:00:10]} Qf3+ {[%emt 0:00:37]} 72. Kc4 {[%emt 0:00:19]} Kh1 {[%emt 0:00:50]} 73. Qa7 {[%emt 0:00:16]} h2 {[%emt 0:00:52]} 74. Qa1+ {[%emt 0:00:38]} Kg2 {[%emt 0:00:02]} 75. Qb2+ {[%emt 0:00:14]} Qf2 {[%emt 0:00:54]} 76. Qg7+ {[%emt 0:00:13]} Qg3 {[%emt 0:00:37]} 77. Qb7+ {[%emt 0:00:10]} Kh3 {[%emt 0:00:16]} 78. Kc5 {[%emt 0:00:33]} Qg1+ {[%emt 0:00:26]} 79. Kd6 {[%emt 0:00:15]} Qd1+ {[%emt 0:01:12]} 80. Ke5 {[%emt 0:00:08]} h1=Q 81. Qh7+ Kg3 {[%emt 0:01:30]} 82. Qc7 {[%emt 0:00:50]} Qdd5+ {[%emt 0:00:09]} 83. Kf6+ {[%emt 1:17:57]} Kg4 {[%emt 0:02:04]} 84. Qg7+ {[%emt 0:00:00]} Kf3 {[%emt 0:00:29]} 85. Qf7 {[%emt 0:00:00]} Qxf7+ {[%emt 0:00:07]} 86. Kxf7 {[%emt 0:00:00]} Qh6 {[%emt 0:00:06]} 87. Ke7 {[%emt 0:00:00]} Qc6 {[%emt 0:00:04]} 88. Kf7 {[%emt 0:00:00]} Qd6 {[%emt 0:00:04]} 89. Kg7 {[%emt 0:00:00]} Qe6 {[%emt 0:00:06]} 90. Kh8 {[%emt 0:00:00]} Kg4 {[%emt 0:00:03]} 91. Kh7 {[%emt 0:00:00]} Kg5 {[%emt 0:00:07]} 92. Kh8 {[%emt 0:00:00]} Qe7 {[%emt 0:00:06]} 93. Kg8 {[%emt 0:00:00]} Kg6 {[%emt 0:00:02]} 94. Kh8 {[%emt 0:00:00]} Qg7# {[%emt 0:00:37]} 0-1

[Event "IIFL Wealth 4th Mumbai Open"]
[Site "Mumbai"]
[Date "2018.12.30"]
[Round "1"]
[White "Dalal, Nandish"]
[Black "Abhinessh, S."]
[Result "0-1"]
[ECO "B07"]
[WhiteElo "1269"]
[BlackElo "1790"]
[Annotator "NA"]
[PlyCount "92"]
[EventDate "2018.12.30"]
[EventType "swiss"]
[EventCountry "IND"]
[SourceTitle "playchess.com"]
[Source "ChessBase"]
[SourceQuality "1"]
[TimeControl "40/5400+30:1800+30"]

1. e4 {[%emt 0:00:00]} d6 {[%emt 0:00:00]} 2. d4 {[%emt 0:00:15]} Nf6 {[%emt 0:00:08]} 3. Nc3 {[%emt 0:01:47]} c6 {[%emt 0:00:16]} 4. h3 {[%emt 0:01:27]} Qc7 {[%emt 0:00:51]} 5. Nf3 {[%emt 0:00:52]} e5 {[%emt 0:00:36]} 6. Bd3 {[%emt 0:03:42]} Be7 {[%emt 0:01:29]} 7. O-O {[%emt 0:03:06]} O-O {[%emt 0:00:09]} 8. Be3 {[%emt 0:01:15]} b5 {[%emt 0:00:34]} 9. Ne2 {[%emt 0:06:13]} a6 {[%emt 0:01:33]} 10. a4 {[%emt 0:04:41]} Bb7 {[%emt 0:03:52]} 11. Ng3 {[%emt 0:03:02]} Re8 {[%emt 0:08:51]} 12. dxe5 {[%emt 0:09:12]} dxe5 {[%emt 0:00:20]} 13. a5 {[%emt 0:01:06]} c5 {[%emt 0:00:33]} 14. c3 {[%emt 0:01:30]} Nc6 {[%emt 0:02:32]} 15. b4 {[%emt 0:07:06]} cxb4 {[%emt 0:04:39]} 16. Bb6 {[%emt 0:00:22]} Qd7 {[%emt 0:01:45]} 17. c4 {[%emt 0:02:55]} bxc4 {[%emt 0:14:15]} 18. Bxc4 {[%emt 0:00:13]} Bd8 {[%emt 0:00:49]} 19. Qb3 {[%emt 0:08:49]} Bxb6 {[%emt 0:02:55]} 20. axb6 {[%emt 0:00:21]} Nd4 {[%emt 0:03:52]} 21. Nxd4 {[%emt 0:02:31]} exd4 {[%emt 0:00:14]} 22. Qxb4 {[%emt 0:01:20]} Nxe4 {[%emt 0:01:21]} 23. Nxe4 {[%emt 0:05:04]} Rxe4 {[%emt 0:00:27]} 24. Bd3 {[%emt 0:00:08]} Re5 {[%emt 0:00:50]} 25. Ra5 {[%emt 0:04:55]} Qc6 {[%emt 0:11:46]} 26. f3 {[%emt 0:02:23]} Rxa5 {[%emt 0:00:45]} 27. Qxa5 {[%emt 0:00:07]} Qc3 {[%emt 0:02:19]} 28. Qxc3 {[%emt 0:03:55]} dxc3 {[%emt 0:00:05]} 29. Bc2 {[%emt 0:00:21]} Kf8 {[%emt 0:02:12]} 30. Rd1 {[%emt 0:00:32]} Ke7 {[%emt 0:01:08]} 31. Ba4 {[%emt 0:01:21]} Rd8 {[%emt 0:04:30]} 32. Rxd8 {[%emt 0:01:00]} Kxd8 {[%emt 0:00:04]} 33. Kf2 {[%emt 0:00:04]} Bc6 {[%emt 0:03:28]} 34. Bc2 {[%emt 0:02:10]} Kc8 {[%emt 0:03:20]} 35. Ke3 {[%emt 0:00:13]} Kb7 {[%emt 0:00:13]} 36. Kd4 {[%emt 0:00:10]} Kxb6 {[%emt 0:00:08]} 37. Kxc3 {[%emt 0:00:09]} Kc5 {[%emt 0:00:47]} 38. Kd3 {[%emt 0:06:16]} Kb4 {[%emt 0:01:12]} 39. Bb1 {[%emt 0:04:09]} Bd5 {[%emt 0:00:31]} 40. Kd4 {[%emt 0:00:00]} Be6 {[%emt 0:00:00]} 41. g4 {[%emt 0:02:04]} a5 {[%emt 0:00:28]} 42. f4 {[%emt 0:00:25]} a4 {[%emt 0:00:07]} 43. f5 {[%emt 0:00:45]} Bc4 {[%emt 0:00:04]} 44. h4 {[%emt 0:00:22]} a3 {[%emt 0:00:20]} 45. g5 {[%emt 0:03:55]} g6 {[%emt 0:00:26]} 46. fxg6 {[%emt 0:01:01]} hxg6 {[%emt 0:00:06]} 0-1